bitfinex-derivatives/quotes_SOLF0:USTF0_20250413
["timestamp","ask_amount","ask_price","bid_price","bid_amount"]
[1744573186919,7.7976,128.27,128.2,7.8016]
[1744573187214,2.077,128.28,128.17,0.05449449]
[1744573187419,0.05900181,128.23,128.12,36.72146295]
[1744573187721,2.077,128.28,128.21,0.05357892]
[1744573187922,7.7956,128.3,128.22,7.8003]
[1744573188122,2.0298,128.33,128.2,36.72146295]
[1744573188320,2.0298,128.33,128.23,0.05012355]
[1744573188521,7.7956,128.3,128.23,7.84942355]
[1744573188718,1.9876,128.38,128.21,6.0975]
[1744573188719,617.14,128.32,128.21,6.0975]
[1744573188923,1.9876,128.38,128.21,6.0975]
[1744573188924,36.72146295,128.36,128.21,6.0975]
[1744573189120,36.72146295,128.33,128.21,6.0975]
[1744573189529,0.058163,128.3,128.27,0.05597374]
[1744573190221,36.77962595,128.3,128.27,0.05597374]
[1744573190415,2.0337,128.29,128.14,36.72146295]
[1744573190618,7.8002,128.23,128.15,9.9426]
[1744573190818,6.0944,128.29,128.15,2.1384]
[1744573191025,36.72146295,128.26,128.15,2.1384]
[1744573191224,36.72146295,128.26,128.15,9.943]
[1744573191426,36.72146295,128.26,128.15,2.1384]
[1744573191628,0.05965063,128.22,128.19,0.05649476]
[1744573191817,7.86065063,128.22,128.19,0.05649476]
[1744573192019,0.05965063,128.22,128.19,0.05649476]
[1744573192426,7.8016,128.21,128.19,0.05649476]
[1744573192627,0.05965063,128.22,128.19,0.05649476]
[1744573193020,36.72146295,128.2,128.02,617.48]
[1744573193223,619.60155063,128.22,128.09,2.144]
[1744573193420,619.5419,128.22,128.09,2.144]
[1744573193624,7.8036,128.17,128.11,7.807]
[1744573193824,7.8036,128.17,128.09,2.144]
[1744573194025,7.8084,128.1,128.06,4.0278]
[1744573194228,36.72146295,128.13,128.0,36.72146295]
[1744573194527,7.8088,128.09,128.03,7.8116]
[1744573194720,38.79086295,128.13,128.01,4.1417]
[1744573194925,36.72146295,128.1,128.01,4.1417]
[1744573195123,36.72146295,128.1,127.98,36.72146295]
[1744573195328,2.0694,128.13,127.95,2.0379]
[1744573195329,36.72146295,128.08,127.95,4.1398]
[1744573195833,81.2429259,128.08,127.89,36.72146295]
[1744573196032,36.72146295,128.02,127.9,1.43577925]
[1744573196228,36.72146295,128.02,127.86,36.72146295]
[1744573196437,36.72146295,127.99,127.82,36.72146295]
[1744573196633,0.05148577,127.97,127.88,36.72146295]
[1744573196833,2.0694,128.01,127.89,4.0631]
[1744573197135,0.05683836,127.94,127.89,4.0631]
[1744573197329,0.05683836,127.94,127.83,3.46233784]
[1744573197330,0.05683836,127.94,127.83,2.1019]
[1744573197528,0.05683836,127.94,127.84,4.0631]
[1744573197729,38.79086295,128.01,127.86,36.72146295]
[1744573197929,3.229e-05,127.9,127.85,618.08]
[1744573198134,618.08,128.05,127.89,36.72146295]
[1744573198333,654.80146295,128.05,127.9,2.1159]
[1744573198727,618.08,128.05,127.92,36.72146295]
[1744573198928,2.1672,128.07,127.93,4.2617]
[1744573199129,36.72146295,128.11,127.95,36.72146295]
[1744573199327,0.05026761,128.01,127.99,0.0587323]
[1744573199534,38.88866295,128.11,127.98,36.72146295]
[1744573199728,36.72146295,128.08,127.93,40.98316295]
[1744573200129,36.72146295,128.08,127.93,4.2617]
[1744573200330,36.72146295,128.1,127.96,36.72146295]
[1744573200525,7.8054,128.14,128.07,7.8093]
[1744573200730,0.05697967,128.04,128.02,0.05985703]
[1744573200926,4.1521,128.15,127.97,2.1159]
[1744573200927,36.72146295,128.06,127.97,2.1159]
[1744573201137,36.72146295,128.06,127.93,4.2617]
[1744573201434,36.72146295,128.03,127.93,6.254]
[1744573201635,0.05366722,128.01,127.93,6.254]
[1744573202029,36.72146295,128.02,127.93,6.254]
[1744573202739,0.05148939,127.99,127.96,0.05723496]
[1744573202929,36.77295234,127.99,127.84,36.72146295]
[1744573203237,36.72146295,127.95,127.83,4.1036]
[1744573203441,7.8181,127.93,127.86,7.8223]
[1744573203639,36.72146295,127.95,127.83,4.1036]
[1744573203932,36.72146295,127.97,127.91,7.8189]
[1744573204234,36.72146295,128.05,127.9,36.72146295]
[1744573204437,36.72146295,128.05,127.93,0.05119387]
[1744573204637,36.72146295,128.02,127.93,0.05119387]
[1744573204839,36.72146295,128.05,127.91,2.0611]
[1744573205038,2.0841,128.06,127.93,36.72146295]
[1744573205532,0.05140849,128.01,127.98,0.05298514]
[1744573205738,36.72146295,128.1,127.98,0.05298514]
[1744573205939,36.72146295,128.1,127.97,1.9678]
[1744573206641,2.0841,128.12,127.97,1.9678]
[1744573206642,2.0841,128.12,127.99,36.72146295]
[1744573206837,2.0841,128.12,128.0,4.1559]
[1744573207140,0.05558489,128.05,128.0,4.1559]
[1744573207444,0.05558489,128.05,128.04,7.8114]
[1744573208039,0.05558489,128.05,128.01,0.05365066]
[1744573208240,618.5,128.23,128.01,36.77511361]
[1744573208445,36.72146295,128.14,128.01,0.05365066]
[1744573208741,36.72146295,128.14,127.99,2.0306]
[1744573208931,36.72146295,128.14,128.01,36.72146295]
[1744573209134,36.72146295,128.18,128.04,36.72146295]
[1744573209337,36.72146295,128.18,128.05,1.9995]
[1744573209542,0.05459782,128.09,128.08,7.809]
[1744573209736,5.55401767,128.22,128.05,1.9995]
[1744573209935,4.1952,128.22,128.07,36.77765446]
[1744573210136,7.8027,128.19,128.13,7.8057]
[1744573210336,7.8027,128.19,128.08,2.0488]
[1744573210337,4.1952,128.22,128.08,2.0488]
[1744573210533,36.72146295,128.2,128.08,2.0488]
[1744573210737,4.1952,128.22,128.08,2.0488]
[1744573211144,0.057972,128.16,128.14,0.04923722]
[1744573212443,0.057972,128.16,128.15,7.8047]
[1744573212943,38.72966295,128.23,128.18,7.8028]
[1744573213144,36.72146295,128.23,128.14,0.04923722]
[1744573213343,36.72146295,128.23,128.11,2.0642]
[1744573213546,44.52166295,128.23,128.17,7.8031]
[1744573213737,36.72146295,128.26,128.11,2.0642]
[1744573213940,7.8015,128.21,128.11,2.0642]
[1744573214144,36.72146295,128.26,128.11,2.0642]
[1744573214446,0.04984976,128.2,128.17,0.05909379]
[1744573214744,36.72146295,128.2,128.11,2.0642]
[1744573215146,36.72146295,128.23,128.14,7.8052]
[1744573215349,36.72146295,128.23,128.11,2.0642]
[1744573215755,0.05654932,128.18,128.16,0.05580536]
[1744573216137,36.72146295,128.17,128.05,1.9995]
[1744573216345,36.72146295,128.14,128.05,1.9995]
[1744573216544,7.8043,128.16,128.05,1.9995]
[1744573216744,36.72146295,128.2,128.07,36.72146295]
[1744573216950,655.00146295,128.23,128.1,36.72146295]
[1744573217244,618.28,128.3,128.16,36.72146295]
[1744573217545,655.00146295,128.3,128.17,2.1258]
[1744573218347,618.28,128.3,128.19,36.72146295]
[1744573218545,0.05970864,128.25,128.22,0.05572201]
[1744573218745,36.72146295,128.33,128.22,0.05572201]
[1744573218938,38.84036295,128.35,128.2,1.9668]
[1744573219138,36.72146295,128.32,128.2,1.9668]
[1744573219949,0.04932665,128.27,128.25,0.05154022]
[1744573220548,2.1189,128.35,128.25,0.05154022]
[1744573220950,36.72146295,128.34,128.2,1.9668]
[1744573221143,36.72146295,128.34,128.21,36.72146295]
[1744573221644,0.05111418,128.29,128.26,0.05913572]
[1744573221954,2.0796,128.37,128.24,36.72146295]
[1744573222145,2.0466,128.39,128.26,0.05681028]
[1744573222345,2.0466,128.39,128.25,4.1041]
[1744573222549,7.7917,128.37,128.32,7.7943]
[1744573222849,2.0466,128.39,128.25,4.1041]
[1744573223049,7.7924,128.36,128.25,4.1041]
[1744573223248,4.1674,128.39,128.25,4.1041]
[1744573223249,36.72146295,128.34,128.25,4.1041]
[1744573223453,0.05029925,128.32,128.29,0.05005005]
[1744573224153,0.05029925,128.32,128.2,38.68826295]
[1744573224154,36.72146295,128.31,128.2,1.9668]
[1744573224351,38.84226295,128.31,128.2,1.9668]
[1744573224652,36.72146295,128.34,128.2,1.9668]
[1744573224848,36.72146295,128.34,128.22,36.72146295]
[1744573225053,38.84226295,128.36,128.22,36.72146295]
[1744573225355,0.05679123,128.3,128.28,0.05244632]
[1744573225554,38.76806295,128.39,128.28,0.05244632]
[1744573225852,7.7909,128.38,128.26,2.0281]
[1744573226050,2.027,128.4,128.28,36.72146295]
[1744573226248,9.8169,128.4,128.34,7.7928]
[1744573226551,7.7899,128.4,128.34,7.7928]
[1744573226852,0.05883107,128.38,128.36,0.05003919]
[1744573227253,36.72146295,128.42,128.29,2.1623]
[1744573227557,0.05576671,128.38,128.36,0.05002573]
[1744573227960,654.50146295,128.43,128.36,0.05002573]
[1744573228162,0.05673436,128.38,128.36,0.05002573]
[1744573228357,36.72146295,128.41,128.36,0.05002573]
[1744573228661,0.05350566,128.38,128.37,0.05196164]
[1744573228959,0.05350566,128.38,128.29,2.1623]
[1744573229156,0.05350566,128.38,128.36,0.05551172]
[1744573229362,36.72146295,128.41,128.36,0.05551172]
[1744573229569,0.05460023,128.38,128.29,2.1623]
[1744573229871,2.1667,128.4,128.29,2.1623]
[1744573230171,0.05709878,128.35,128.32,0.05364527]
[1744573230470,0.05709878,128.35,128.29,2.1623]
[1744573230769,0.05709878,128.35,128.32,0.05859896]
[1744573230969,7.7938,128.33,128.32,0.05859896]
[1744573231267,0.05349039,128.34,128.32,0.05859896]
[1744573231469,0.05349039,128.34,128.32,7.85279896]
[1744573231769,0.05349039,128.34,128.32,0.05859896]
[1744573232869,44.57495334,128.34,128.19,617.46]
[1744573233072,2.0233,128.33,128.2,2.1584]
[1744573233270,7.7967,128.29,128.2,2.1584]
[1744573233471,102.52789791,128.49,128.26,36.72146295]
[1744573233776,38.74476295,128.4,128.27,4.1434]
[1744573234171,0.05737331,128.35,128.32,0.05647203]
[1744573234473,0.05737331,128.35,128.28,2.1584]
[1744573234870,0.05737331,128.35,128.32,0.05487178]
[1744573235074,0.05737331,128.35,128.32,7.84887178]
[1744573235275,0.05737331,128.35,128.32,0.05487178]
[1744573235670,0.05737331,128.35,128.33,7.7938]
[1744573235880,0.05737331,128.35,128.32,0.05487178]
[1744573236970,0.05737331,128.35,128.33,7.7936]
[1744573237275,0.4249,128.44,128.32,36.77633473]
[1744573237672,7.7881,128.43,128.38,7.7903]
[1744573237876,0.4249,128.44,128.38,7.7903]
[1744573238176,7.7886,128.42,128.32,36.72146295]
[1744573238377,0.4249,128.44,128.32,36.72146295]
[1744573238578,0.05167001,128.38,128.37,7.7913]
[1744573238879,0.4249,128.44,128.32,36.72146295]
[1744573239078,0.05216024,128.39,128.36,0.05073353]
[1744573239278,0.4249,128.44,128.36,0.05073353]
[1744573239478,0.4249,128.44,128.32,36.72146295]
[1744573240378,0.05908811,128.39,128.38,7.7907]
[1744573240678,8.2122,128.44,128.32,36.72146295]
[1744573240879,0.05483592,128.4,128.37,0.05582211]
[1744573241179,0.05483592,128.4,128.39,7.7897]
[1744573241580,0.05483592,128.4,128.37,0.05582211]
[1744573242182,0.05483592,128.4,128.38,7.7903]
[1744573242581,0.05483592,128.4,128.37,0.05582211]
[1744573243283,0.05483592,128.4,128.37,7.84712211]
[1744573243580,0.05483592,128.4,128.37,0.05582211]
[1744573243779,7.84473592,128.4,128.37,0.05582211]
[1744573244277,0.05483592,128.4,128.37,0.05582211]
[1744573245181,7.7907,128.38,128.37,0.05582211]
[1744573246181,44.50146295,128.38,128.24,364.0]
[1744573246380,36.72146295,128.35,128.25,6.1266]
[1744573246576,36.72146295,128.27,128.14,617.06]
[1744573246884,36.72146295,128.27,128.2,1.35640786]
[1744573247084,36.72146295,128.27,128.17,1.9853]
[1744573247482,0.05236844,128.25,128.22,0.05532139]
[1744573247886,7.7993,128.24,128.22,0.05532139]
[1744573248182,0.05236844,128.25,128.22,0.05532139]
[1744573248378,36.72146295,128.24,128.15,2.0387]
[1744573248583,36.72146295,128.21,128.08,36.72146295]
[1744573248782,2.0906,128.23,128.08,655.33906141]
[1744573248982,36.72146295,128.24,128.11,36.72146295]
[1744573249185,2.0906,128.27,128.14,36.72146295]
[1744573249487,1.9964,128.31,128.15,4.0428]
[1744573249788,0.05732205,128.22,128.19,0.05057868]
[1744573250088,0.05732205,128.22,128.2,7.8016]
[1744573250287,36.72146295,128.29,128.19,0.04959654]
[1744573250484,0.05092006,128.22,128.19,0.04959654]
[1744573250684,0.05092006,128.22,128.18,2.0784]
[1744573250985,36.72146295,128.28,128.19,0.05118112]
[1744573251187,0.05376762,128.21,128.19,0.05118112]
[1744573251387,36.72146295,128.25,128.16,2.0784]
[1744573251590,0.05976291,128.21,128.19,0.05747239]
[1744573251785,0.05976291,128.21,128.08,653.98146295]
[1744573251982,36.72146295,128.15,128.0,617.42]
[1744573252186,36.72146295,128.15,128.01,42.73986295]
[1744573252484,7.8067,128.12,128.01,6.0184]
[1744573252683,36.72146295,128.15,128.01,6.0184]
[1744573252985,7.8077,128.11,128.05,7.8107]
[1744573253185,0.05404552,128.09,128.07,0.05180666]
[1744573253589,36.72146295,128.12,128.01,6.0184]
[1744573253989,0.05392437,128.09,128.07,0.0595646]
[1744573254192,36.77538732,128.09,128.0,1.35889726]
[1744573254394,36.72146295,128.06,127.94,617.42]
[1744573254593,7.8102,128.06,127.94,654.14146295]
[1744573254792,36.72146295,128.08,127.94,36.72146295]
[1744573255092,7.8102,128.06,127.99,7.814]
[1744573255287,36.72146295,128.08,127.94,36.72146295]
[1744573255489,0.04935412,128.02,128.0,0.05523145]
[1744573255684,36.77081707,128.02,128.0,0.05523145]
[1744573255892,36.72146295,128.02,127.93,6.0703]
[1744573256082,36.77944683,128.02,128.0,0.05384182]
[1744573256286,36.77944683,128.02,127.93,6.0703]
[1744573256488,36.72146295,128.02,127.89,73.51535058]
[1744573256694,36.72146295,128.05,127.91,36.72146295]
[1744573256997,36.72146295,128.12,127.97,36.72146295]
[1744573257201,9.9008,128.11,128.04,7.8113]
[1744573257393,9.9008,128.11,128.0,36.72146295]
[1744573257394,617.74,128.14,128.0,36.72146295]
[1744573257591,0.05330203,128.09,128.03,36.72146295]
[1744573257794,0.05330203,128.09,128.06,0.05068416]
[1744573258596,0.05330203,128.09,127.98,6.2132]
[1744573258897,36.72146295,128.07,127.98,6.2132]
[1744573259101,36.72146295,128.12,127.98,42.93466295]
[1744573259397,617.74,128.14,128.01,36.72146295]
[1744573259799,654.46146295,128.14,128.01,36.72146295]
[1744573259996,0.05525318,128.09,128.06,0.05609983]
[1744573260398,0.05525318,128.09,128.01,36.72146295]
[1744573260697,0.05525318,128.09,128.06,0.05450254]
[1744573260899,654.46146295,128.14,128.06,0.05450254]
[1744573261098,0.0597113,128.09,128.06,0.05450254]
[1744573261301,0.0597113,128.09,128.01,36.72146295]
[1744573261500,36.72146295,128.08,127.98,6.2132]
[1744573261798,36.72146295,128.05,127.91,36.72146295]
[1744573262000,36.72146295,128.05,127.93,2.0841]
[1744573262205,44.53276295,128.05,127.93,2.0841]
[1744573262393,2.0539,128.07,127.94,36.72146295]
[1744573262599,36.72146295,128.05,127.93,2.0841]
[1744573262803,2.0539,128.07,127.94,36.72146295]
[1744573263003,0.05085955,128.02,127.99,0.05097413]
[1744573263503,36.7723225,128.02,127.92,1.9699]
[1744573263704,36.7723225,128.02,127.99,0.05027627]
[1744573263901,36.7723225,128.02,127.92,1.9699]
[1744573263902,7.8159,127.97,127.91,7.8192]
[1744573264208,36.72146295,128.0,127.88,2.0841]
[1744573264404,36.72146295,128.03,127.89,36.72146295]
[1744573264704,618.14,128.05,127.92,36.72146295]
[1744573265201,0.05351354,127.97,127.92,36.72146295]
[1744573265404,7.8143,128.0,127.94,7.8171]
[1744573265607,36.72146295,128.01,127.89,36.72146295]
[1744573265794,0.05726902,127.96,127.88,2.0841]
[1744573266001,0.05726902,127.96,127.69,23.28]
[1744573266002,36.72146295,127.9,127.69,23.28]
[1744573266198,36.72146295,127.87,127.76,2.0135]
[1744573266403,0.05024036,127.81,127.79,1.36057081]
[1744573266602,38.72666295,127.89,127.77,2.1406]
[1744573267204,7.8218,127.88,127.79,7.8261]
[1744573267403,36.72146295,127.86,127.77,2.1406]
[1744573267609,2.0052,127.89,127.74,1.36152898]
[1744573267809,0.05175646,127.83,127.75,7.8291]
[1744573268106,36.72146295,127.87,127.72,4.1783]
[1744573268304,36.72146295,127.84,127.75,7.8285]
[1744573268713,44.54516295,127.84,127.75,7.8286]
[1744573269005,0.05300777,127.81,127.72,4.17815689]
[1744573269211,0.05300777,127.81,127.72,2.01335689]
[1744573269506,36.72146295,127.86,127.72,2.01335689]
[1744573269713,0.05686067,127.78,127.72,2.01335689]
[1744573269914,626.3212,127.88,127.74,36.72146295]
[1744573270119,626.3212,127.88,127.75,2.1648]
[1744573270311,7.8212,127.88,127.75,2.1648]
[1744573270614,2.0052,127.89,127.7,1.36166217]
[1744573270808,36.72146295,127.82,127.7,2.0691]
[1744573271009,36.72146295,127.82,127.74,7.8296]
[1744573271211,618.84,127.86,127.78,0.05744205]
[1744573271212,0.05276484,127.81,127.78,0.05744205]
[1744573271604,7.82,127.81,127.7,2.0691]
[1744573271807,0.05071463,127.81,127.78,0.05164105]
[1744573272007,0.05071463,127.81,127.7,2.0691]
[1744573272214,36.72146295,127.83,127.7,2.0691]
[1744573272415,655.56146295,127.86,127.78,0.05627358]
[1744573272716,36.72146295,127.88,127.74,36.72146295]
[1744573273016,2.0052,127.89,127.81,0.0555529]
[1744573273213,2.0052,127.89,127.81,7.8809529]
[1744573273416,2.0052,127.89,127.77,36.72146295]
[1744573273716,36.72146295,127.8,127.54,364.0]
[1744573273916,36.72146295,127.69,127.55,4.2329]
[1744573274108,36.72146295,127.69,127.56,1.43956642]
[1744573274307,36.72146295,127.66,127.61,0.05160953]
[1744573274718,36.72146295,127.63,127.56,2.1104]
[1744573274917,0.055309,127.64,127.56,2.1104]
[1744573275117,36.72146295,127.66,127.62,0.05295144]
[1744573275319,36.72146295,127.75,127.63,36.72146295]
[1744573275620,36.72146295,127.69,127.63,0.05376931]
[1744573275920,0.05518526,127.65,127.63,0.05376931]
[1744573276112,0.05518526,127.65,127.56,2.1104]
[1744573276311,36.72146295,127.66,127.63,0.05198983]
[1744573276512,2.0092,127.67,127.63,0.05198983]
[1744573276721,2.0092,127.67,127.55,4.2329]
[1744573277109,0.05728122,127.66,127.64,0.05028802]
[1744573277515,7.84,127.66,127.51,1.36393031]
[1744573277719,36.72146295,127.58,127.44,36.72146295]
[1744573278122,36.72146295,127.61,127.47,36.72146295]
[1744573278424,4.1128,127.66,127.5,36.72146295]
[1744573278625,36.72146295,127.65,127.52,36.72146295]
[1744573278825,2.0092,127.67,127.54,36.72146295]
[1744573279025,2.0092,127.67,127.58,7.839]
[1744573279222,2.0092,127.67,127.55,36.72146295]
[1744573279523,44.55486295,127.69,127.56,36.72146295]
[1744573279718,36.72146295,127.69,127.54,36.72146295]
[1744573279921,36.72146295,127.66,127.53,6.1051]
[1744573280115,36.77554684,127.63,127.49,36.72146295]
[1744573280329,36.72146295,127.57,127.45,6.1642]
[1744573280719,7.841,127.56,127.47,7.8457]
[1744573281020,36.72146295,127.57,127.45,42.88566295]
[1744573281325,2.0344,127.62,127.45,626.2042]
[1744573281520,36.72146295,127.65,127.51,36.72146295]
[1744573281820,36.72146295,127.68,127.54,36.72146295]
[1744573282122,36.72146295,127.71,127.57,36.72146295]
[1744573282518,36.72146295,127.71,127.56,36.72146295]
[1744573282720,0.05844299,127.65,127.63,0.05722143]
[1744573282921,2.0344,127.75,127.63,0.05722143]
[1744573283120,36.72146295,127.77,127.65,36.72146295]
[1744573283326,7.8316,127.71,127.59,36.72146295]
[1744573283625,36.72146295,127.71,127.57,36.72146295]
[1744573283820,44.55306295,127.71,127.57,36.72146295]
[1744573284027,36.72146295,127.65,127.55,4.1948]
[1744573284223,36.77990929,127.65,127.51,36.72146295]
[1744573284425,36.72146295,127.65,127.56,7.8405]
[1744573284728,36.72146295,127.68,127.54,36.72146295]
[1744573284924,36.72146295,127.68,127.59,7.8387]
[1744573285123,36.72146295,127.65,127.49,6.1015]
[1744573285325,36.72146295,127.68,127.49,6.1015]
[1744573285326,2.1205,127.64,127.49,6.1015]
[1744573285522,2.1205,127.64,127.62,0.05451768]
[1744573285722,2.1205,127.64,127.44,36.72146295]
[1744573285723,36.72146295,127.63,127.38,620.4]
[1744573285924,36.72146295,127.57,127.48,1.56887354]
[1744573286123,7.8416,127.55,127.48,1.56887354]
[1744573286322,36.72146295,127.57,127.48,1.56887354]
[1744573286828,36.72146295,127.57,127.43,36.72146295]
[1744573287028,36.77145676,127.54,127.41,1.9839]
[1744573287227,7.8444,127.51,127.43,7.8487]
[1744573287428,36.72146295,127.54,127.41,1.9839]
[1744573287831,36.72146295,127.54,127.42,36.72146295]
[1744573288129,620.4,127.55,127.41,1.9839]
[1744573288324,36.72146295,127.6,127.41,622.6239]
[1744573288325,0.05809969,127.49,127.41,622.6239]
[1744573288525,0.05809969,127.49,127.43,36.72146295]
[1744573288728,36.72146295,127.57,127.41,622.6239]
[1744573288928,36.72146295,127.6,127.44,36.72146295]
[1744573289131,622.7817,127.61,127.49,36.72146295]
[1744573289325,36.72146295,127.65,127.44,36.72146295]
[1744573289525,36.72146295,127.65,127.52,36.72146295]
[1744573289727,36.72146295,127.63,127.45,1.56924284]
[1744573290129,36.72146295,127.6,127.45,1.56924284]
[1744573290329,36.72146295,127.57,127.45,1.56924284]
[1744573290727,0.0538592,127.54,127.51,0.05281975]
[1744573290928,36.77532215,127.54,127.39,36.72146295]
[1744573291130,36.72146295,127.51,127.38,36.72146295]
[1744573291434,2.073,127.53,127.44,36.72146295]
[1744573291630,2.1691,127.56,127.47,36.72146295]
[1744573291930,7.8401,127.58,127.47,36.72146295]
[1744573292131,620.7,127.61,127.5,36.72146295]
[1744573292333,0.05305999,127.53,127.5,36.72146295]
[1744573292535,7.84,127.58,127.51,7.8437]
[1744573292725,36.72146295,127.65,127.5,36.72146295]
[1744573292926,0.06027553,127.53,127.45,43.04186295]
[1744573293325,36.72146295,127.62,127.45,43.04186295]
[1744573293539,0.05893672,127.5,127.46,7.8468]
[1744573293737,36.72146295,127.59,127.45,6.3204]
[1744573293937,36.72146295,127.62,127.47,36.72146295]
[1744573294139,0.05019536,127.49,127.45,6.3204]
[1744573294340,2.1174,127.66,127.45,6.3204]
[1744573294540,36.72146295,127.64,127.54,7.8419]
[1744573294744,36.72146295,127.65,127.51,36.72146295]
[1744573295341,622.773,127.67,127.54,36.72146295]
[1744573295542,36.72146295,127.71,127.57,36.72146295]
[1744573295744,620.84,127.73,127.57,0.0539747]
[1744573295943,36.72146295,127.74,127.61,36.72146295]
[1744573296245,36.72146295,127.69,127.58,2.0483]
[1744573296440,36.72146295,127.66,127.54,1.9609]
[1744573296651,36.72146295,127.63,127.52,7.8428]
[1744573296833,0.05067702,127.61,127.48,36.72146295]
[1744573297039,36.72146295,127.57,127.49,1.56875049]
[1744573297545,36.72146295,127.54,127.49,1.56875049]
[1744573297746,36.72146295,127.55,127.49,1.56875049]
[1744573297941,36.72146295,127.52,127.37,2.1321]
[1744573298143,0.0535074,127.49,127.46,0.05644318]
[1744573298842,36.77497035,127.49,127.37,2.1321]
[1744573299338,36.72146295,127.52,127.33,3.3631111]
[1744573299543,36.72146295,127.44,127.25,4.1791]
[1744573299748,36.72146295,127.44,127.32,7.8554]
[1744573299937,36.72146295,127.41,127.25,6.1741]
[1744573300141,0.05935796,127.39,127.25,6.1741]
[1744573300338,36.72146295,127.41,127.25,6.1741]
[1744573300740,0.05874287,127.33,127.25,6.1741]
[1744573300945,0.05874287,127.33,127.25,7.54092312]
[1744573301146,36.72146295,127.41,127.25,7.54092312]
[1744573301551,0.05300401,127.3,127.25,6.1741]
[1744573301752,36.72146295,127.38,127.25,6.1741]
[1744573301945,36.72146295,127.41,127.29,7.8572]
[1744573302251,36.72146295,127.4,127.25,6.1741]
[1744573302446,7.8534,127.36,127.34,0.05478804]
[1744573302646,38.87656295,127.43,127.19,3.38909788]
[1744573302647,620.96,127.39,127.19,3.38909788]
[1744573302950,7.8558,127.32,127.2,4.11]
[1744573303250,620.96,127.39,127.23,36.72146295]
[1744573303449,620.96,127.39,127.2,4.11]
[1744573303653,36.72146295,127.33,127.2,4.11]
[1744573303850,0.0519725,127.31,127.2,2.0338]
[1744573304048,7.8582,127.28,127.19,3.38909788]
[1744573304249,36.72146295,127.28,127.19,3.38909788]
[1744573304458,2.0765362,127.27,127.19,3.38909788]
[1744573304751,36.72146295,127.23,127.19,3.38909788]
[1744573304950,2.0265,127.27,127.08,6.2506]
[1744573305152,2.0265,127.27,127.08,9.19255141]
[1744573305357,0.05949073,127.22,127.09,1.44497049]
[1744573305556,36.72146295,127.3,127.12,36.72146295]
[1744573305748,0.0601838,127.17,127.08,9.19287422]
[1744573306056,621.28,127.31,127.09,3.01844076]
[1744573306257,7.8595,127.26,127.15,7.8659]
[1744573306458,2.0265,127.3,127.09,1.57368793]
[1744573306755,1.6629,127.29,127.11,36.72146295]
[1744573306951,36.72146295,127.28,127.08,6.2506]
[1744573307254,2.0265,127.3,127.21,7.8622]
[1744573307562,0.1368,127.35,127.19,36.78098403]
[1744573307855,0.1368,127.35,127.27,7.8585]
[1744573308052,621.74,127.43,127.24,36.72146295]
[1744573308248,0.1368,127.42,127.21,4.289]
[1744573308558,0.0561498,127.35,127.32,0.05143825]
[1744573310350,36.72146295,127.33,127.11,621.86]
[1744573310554,36.72146295,127.28,127.12,3.45554899]
[1744573310756,621.9997,127.32,127.13,1.44344899]
[1744573310955,1.5709685,127.31,127.12,38.73356295]
[1744573311259,36.72146295,127.23,127.1,2.1474]
[1744573311560,36.72146295,127.19,127.0,621.86]
[1744573311760,36.72146295,127.2,127.04,1.36883924]
[1744573311959,36.72146295,127.19,127.05,36.72146295]
[1744573312158,0.05106203,127.13,127.01,2.1022]
[1744573312355,0.05106203,127.13,127.02,1.44562428]
[1744573312663,622.12,127.15,127.0,1.57480314]
[1744573312862,37.08909178,127.17,127.0,1.57480314]
[1744573313162,622.12,127.21,127.02,37.08909178]
[1744573313358,0.05883528,127.09,127.0,7.8752]
[1744573313558,37.08909178,127.15,126.98,1.95525049]
[1744573313753,37.08909178,127.18,127.03,37.08909178]
[1744573313956,1.57232704,127.2,127.09,37.08909178]
[1744573314261,1.57232704,127.2,126.99,623.48932399]
[1744573314463,1.57232704,127.2,127.14,37.08909178]
[1744573314660,37.08909178,127.31,127.17,37.08909178]
[1744573314863,1.8104,127.34,127.2,37.08909178]
[1744573315063,624.319,127.35,127.22,7.8614]
[1744573315265,37.08909178,127.37,127.22,37.08909178]
[1744573315568,37.08909178,127.37,127.23,37.08909178]
[1744573315961,0.05860627,127.31,127.28,0.05025761]
[1744573316461,38.89949178,127.38,127.2,37.08909178]
[1744573316665,0.05704642,127.31,127.28,0.05975089]
[1744573316866,0.05704642,127.31,127.16,622.38]
[1744573316867,0.05704642,127.31,127.16,37.08909178]
[1744573317068,38.89949178,127.38,127.22,37.08909178]
[1744573317266,37.08909178,127.38,127.23,37.08909178]